bitfinex/quotes_BTCUSD_20240703
["timestamp","ask_amount","ask_price","bid_price","bid_amount"]
[1720011848613,0.3412878,60001.0,60000.0,1.439001]
[1720011848934,0.3552878,60001.0,60000.0,1.439001]
[1720011849142,0.50165086,60001.0,60000.0,1.438001]
[1720011849439,0.51575086,60001.0,60000.0,1.439001]
[1720011850343,0.81575086,60001.0,60000.0,1.439001]
[1720011850541,1.19590668,60001.0,60000.0,1.439001]
[1720011850770,1.43660668,60001.0,60000.0,1.439001]
[1720011850940,1.53205086,60001.0,60000.0,1.434001]
[1720011851301,0.1602988,60002.0,60001.0,0.46794914]
[1720011851504,0.5765988,60002.0,60001.0,0.46794914]
[1720011851712,0.70239918,60002.0,60001.0,0.46794914]
[1720011851908,0.76920218,60002.0,60001.0,0.43453418]
[1720011852312,0.76920218,60002.0,60001.0,0.39966116]
[1720011852767,0.79720218,60002.0,60001.0,0.36219404]
[1720011853147,0.79710218,60002.0,60001.0,0.32072281]
[1720011853328,0.89710218,60002.0,60001.0,0.32072281]
[1720011853532,0.89710218,60002.0,60001.0,0.23932377]
[1720011853845,0.89710218,60002.0,60001.0,0.20132377]
[1720011854572,0.7713018,60002.0,60001.0,0.20132377]
[1720011854997,0.91315078,60002.0,60001.0,0.20132377]
[1720011855169,0.73755078,60002.0,60001.0,0.20132377]
[1720011855620,0.73755078,60002.0,60001.0,0.20122377]
[1720011855997,0.73755078,60002.0,60001.0,0.20112377]
[1720011856198,0.33665198,60002.0,60001.0,0.20112377]
[1720011856400,0.34023766,60002.0,60001.0,0.20112377]
[1720011856752,0.34023766,60002.0,60001.0,0.20102377]
[1720011857323,0.34023766,60002.0,60001.0,0.20092377]
[1720011858969,0.58093766,60002.0,60001.0,0.20092377]
[1720011859531,0.82323664,60002.0,60001.0,0.20092377]
[1720011860032,0.58317407,60002.0,60001.0,0.20092377]
[1720011861296,0.58317407,60002.0,60001.0,0.19604756]
[1720011861499,0.34247407,60002.0,60001.0,0.19604756]
[1720011861730,0.34247407,60002.0,60001.0,0.41964756]
[1720011861921,0.34247407,60002.0,60001.0,0.65604756]
[1720011862511,0.194803,60002.0,60001.0,0.65604756]
[1720011862723,0.24483058,60002.0,60001.0,0.65604756]
[1720011862892,0.34483058,60002.0,60001.0,0.65604756]
[1720011863506,0.34483058,60002.0,60001.0,0.19604756]
[1720011863507,0.64575364,60002.0,60001.0,0.19604756]
[1720011864083,0.34483058,60002.0,60001.0,0.70604756]
[1720011864286,0.34483058,60002.0,60001.0,0.19604756]
[1720011864485,0.34483058,60002.0,60001.0,0.19594756]
[1720011864973,0.33083058,60002.0,60001.0,0.19494756]
[1720011865212,0.60064244,60002.0,60001.0,0.19494756]
[1720011865355,0.60364244,60002.0,60001.0,0.19594756]
[1720011865526,0.51097221,60002.0,60001.0,0.19594756]
[1720011865725,0.50316195,60002.0,60001.0,0.19594756]
[1720011865929,0.5756891,60002.0,60001.0,0.19494756]
[1720011866130,0.57777418,60002.0,60001.0,0.19594756]
[1720011866591,0.56377418,60002.0,60001.0,0.19594756]
[1720011866782,0.56977418,60002.0,60001.0,0.19594756]
[1720011867261,0.45126112,60002.0,60001.0,0.19494756]
[1720011867456,0.45126112,60002.0,60001.0,0.19594756]
[1720011867457,0.46026112,60002.0,60001.0,0.19594756]
[1720011867625,0.46226112,60002.0,60001.0,0.19684756]
[1720011868226,0.30196232,60002.0,60001.0,0.19684756]
[1720011868803,0.214781,60002.0,60001.0,0.19584756]
[1720011869035,0.38593497,60002.0,60001.0,0.19584756]
[1720011869240,0.71989112,60002.0,60001.0,0.19684756]
[1720011869607,0.55952806,60002.0,60001.0,0.19684756]
[1720011869817,0.55952806,60002.0,60001.0,0.19674756]
[1720011870021,0.54923377,60002.0,60001.0,0.19674756]
[1720011870447,0.54933377,60002.0,60001.0,0.19674756]
[1720011871059,0.54943377,60002.0,60001.0,0.19674756]
[1720011871455,0.70989683,60002.0,60001.0,0.19674756]
[1720011871903,0.58534233,60002.0,60001.0,0.19674756]
[1720011872065,0.70918056,60002.0,60001.0,0.19674756]
[1720011873353,0.70918056,60002.0,60001.0,0.19180144]
[1720011875177,0.58534233,60002.0,60001.0,0.19180144]
[1720011875388,0.70898708,60002.0,60001.0,0.19180144]
[1720011876133,0.88458708,60002.0,60001.0,0.19180144]
[1720011876487,0.88458708,60002.0,60001.0,0.19263144]
[1720011876695,0.88550009,60002.0,60001.0,0.19263144]
[1720011876892,0.88560009,60002.0,60001.0,0.19263144]
[1720011877509,1.12630009,60002.0,60001.0,0.19263144]
[1720011877768,1.12630009,60002.0,60001.0,0.18412645]
[1720011878310,1.58460009,60002.0,60001.0,0.18412645]
[1720011878505,1.28132262,60002.0,60001.0,0.18412645]
[1720011878704,1.15767787,60002.0,60001.0,0.18422645]
[1720011878963,1.28151948,60002.0,60001.0,0.18422645]
[1720011879367,0.6593,60001.0,60000.0,0.290801]
[1720011879671,1.23822461,60001.0,60000.0,0.290801]
[1720011880213,1.56084886,60001.0,60000.0,0.26080241]
[1720011880415,1.56084886,60001.0,60000.0,0.26180241]
[1720011880416,1.56384886,60001.0,60000.0,0.26180241]
[1720011881009,1.57284886,60001.0,60000.0,0.26180241]
[1720011881135,1.43871768,60001.0,60000.0,0.26180241]
[1720011881343,1.57899454,60001.0,60000.0,0.26180241]
[1720011881777,1.56699454,60001.0,60000.0,0.26080241]
[1720011882351,1.56689454,60001.0,60000.0,0.26080241]
[1720011882554,1.57889454,60001.0,60000.0,0.26180241]
[1720011882756,1.59289454,60001.0,60000.0,0.26180241]
[1720011883377,1.57889454,60001.0,60000.0,0.26180241]
[1720011884097,1.56689454,60001.0,60000.0,0.26080241]
[1720011884258,1.60464099,60001.0,60000.0,0.26080241]
[1720011885123,1.59064099,60001.0,60000.0,0.26080241]
[1720011885324,1.69074099,60001.0,60000.0,0.26080241]
[1720011885602,1.69074099,60001.0,59996.0,0.009185]
[1720011885603,0.3755,59997.0,59996.0,0.009185]
[1720011885773,1.23107976,59997.0,59996.0,0.009185]
[1720011885976,1.23107976,59997.0,59961.0,0.98753494]
[1720011885977,0.1756,59979.0,59961.0,0.98753494]
[1720011886188,0.5055,59980.0,59977.0,0.48093494]
[1720011886189,0.42249393,59978.0,59977.0,0.48093494]
[1720011886390,0.2407,59974.0,59961.0,0.98753494]
[1720011886596,0.14709393,59973.0,59961.0,0.98753494]
[1720011886818,0.08015582,59971.0,59961.0,0.5066]
[1720011887028,0.38063628,59970.0,59961.0,0.5066]
[1720011887240,1.1197499,59970.0,59969.0,0.010185]
[1720011887437,1.7064979,59970.0,59969.0,0.010185]
[1720011887860,1.9665339,59970.0,59969.0,0.009185]
[1720011888089,1.54836356,59970.0,59969.0,0.009185]
[1720011888512,1.56226356,59970.0,59969.0,0.009185]
[1720011888886,1.86788853,59970.0,59969.0,0.009185]
[1720011889054,1.90306356,59970.0,59969.0,0.010185]
[1720011889249,0.6998,59961.0,59960.0,0.1]
[1720011889469,2.86839601,59961.0,59960.0,0.1]
[1720011889720,2.42939601,59961.0,59960.0,0.1]
[1720011889911,0.38177104,59961.0,59960.0,0.1]
[1720011890085,0.40678308,59961.0,59960.0,0.1]
[1720011890289,0.44746139,59961.0,59960.0,0.09584396]
[1720011890521,0.24648428,59961.0,59960.0,0.09584396]
[1720011890754,0.26048428,59961.0,59960.0,0.45644396]
[1720011890872,0.26048428,59961.0,59960.0,0.94874396]
[1720011890873,0.05922551,59961.0,59960.0,0.94874396]
[1720011891094,0.07038075,59961.0,59960.0,0.94874396]
[1720011891288,0.07028075,59961.0,59960.0,0.94874396]
[1720011891494,0.06819627,59961.0,59960.0,0.94874396]
[1720011891884,0.03818385,59961.0,59960.0,1.24894396]
[1720011892010,0.02418385,59961.0,59960.0,1.24894396]
[1720011892210,0.02428385,59961.0,59960.0,1.24794396]
[1720011892460,0.02418385,59961.0,59960.0,1.24794396]
[1720011892658,0.05776681,59961.0,59960.0,0.94894396]
[1720011893062,0.0332,59970.0,59960.0,0.94894396]
[1720011893063,0.0331,59970.0,59962.0,0.2778]
[1720011893272,0.0331,59970.0,59969.0,0.8647]
[1720011893273,0.0166,59970.0,59969.0,0.8647]
[1720011893480,0.06026117,59970.0,59969.0,0.5051]
[1720011893823,0.06016117,59970.0,59969.0,0.5051]
[1720011894264,0.06006117,59970.0,59969.0,0.5051]
[1720011894470,0.06006117,59970.0,59960.0,0.39584396]
[1720011894471,0.46095997,59970.0,59961.0,0.509]
[1720011894670,0.2407,59962.0,59961.0,0.509]
[1720011894872,0.38446117,59962.0,59961.0,0.509]
[1720011895713,0.38446117,59962.0,59961.0,0.8686]
[1720011895714,0.14376117,59962.0,59961.0,0.8686]
[1720011895828,0.04376117,59962.0,59961.0,0.8686]
[1720011896037,0.04776117,59962.0,59961.0,0.8686]
[1720011896242,0.04776117,59962.0,59960.0,0.09584396]
[1720011896243,0.24694609,59962.0,59960.0,0.09584396]
[1720011896440,0.54634981,59961.0,59960.0,0.09584396]
[1720011896709,0.54624981,59961.0,59960.0,0.09584396]
[1720011897039,0.56345034,59961.0,59960.0,0.09584396]
[1720011897398,1.49524346,59961.0,59960.0,0.09584396]
[1720011897628,1.60251228,59961.0,59960.0,0.09584396]
[1720011897777,1.69069668,59961.0,59960.0,0.09584396]
[1720011898724,1.70469668,59961.0,59960.0,0.09584396]
[1720011899144,1.69069668,59961.0,59960.0,0.09684396]
[1720011899490,0.1756,59955.0,59950.0,0.000603]
[1720011899691,0.4167,59951.0,59950.0,0.000603]
[1720011899844,0.8997988,59951.0,59950.0,0.000603]
[1720011900054,0.96969348,59951.0,59950.0,0.000603]
[1720011900262,0.94669348,59951.0,59950.0,0.000603]
[1720011900423,0.55258199,59951.0,59950.0,0.000603]
[1720011900624,0.63906023,59951.0,59950.0,0.000603]
[1720011901473,0.50989726,59951.0,59950.0,0.000603]
[1720011901665,0.75099726,59951.0,59950.0,0.000603]
[1720011901915,0.60433583,59951.0,59950.0,0.000603]
[1720011902120,0.48015338,59951.0,59950.0,0.000603]
[1720011902330,0.16541755,59951.0,59950.0,0.000603]
[1720011902514,0.128,59951.0,59950.0,0.001603]
[1720011902724,0.19223996,59951.0,59950.0,0.001603]
[1720011903294,0.33853876,59951.0,59950.0,0.000603]
[1720011903496,0.63150822,59951.0,59950.0,0.001603]
[1720011904332,0.78310822,59951.0,59950.0,0.000603]
[1720011904576,0.78310822,59951.0,59940.0,0.00835]
[1720011904577,0.1998,59949.0,59940.0,0.00835]
[1720011904732,0.48029458,59948.0,59940.0,0.00835]
[1720011904933,0.68714736,59948.0,59940.0,0.00835]
[1720011905139,0.75956594,59948.0,59940.0,0.00835]
[1720011905493,0.97899566,59948.0,59940.0,0.00835]
[1720011905678,1.0736863,59948.0,59940.0,0.00835]
[1720011906612,1.0876863,59948.0,59947.0,0.00936]
[1720011906820,1.0876863,59948.0,59940.0,0.00835]
[1720011906821,1.1016863,59948.0,59940.0,0.00835]
[1720011906971,0.4822,59941.0,59940.0,0.00835]
[1720011907173,0.71884706,59941.0,59940.0,0.00835]
[1720011907393,0.81884706,59941.0,59940.0,0.00835]
[1720011908139,0.7586988,59941.0,59940.0,0.00835]
[1720011908381,0.1998,59939.0,59930.0,0.2863]
[1720011908560,0.6865,59937.0,59927.0,0.2148]
[1720011908733,0.2411,59931.0,59927.0,0.2148]
[1720011908980,0.1592303,59930.0,59927.0,0.2148]
[1720011909115,0.0102921,59929.0,59927.0,0.2148]
[1720011909733,0.0102921,59929.0,59928.0,0.3596]
[1720011909932,0.08544792,59929.0,59927.0,0.2158]
[1720011910169,0.1602988,59928.0,59925.0,0.0120897]
[1720011910369,0.1602988,59928.0,59911.0,0.5081]
[1720011910370,0.1756,59926.0,59911.0,0.5081]
[1720011910636,0.70897871,59927.0,59914.0,0.48093494]
[1720011910637,0.1756,59922.0,59914.0,0.48093494]
[1720011910845,0.22547871,59925.0,59912.0,0.0002]
[1720011910846,0.2411,59915.0,59912.0,0.0002]
[1720011911049,0.2411,59915.0,59913.0,0.3]
[1720011911194,0.2411,59915.0,59912.0,0.0002]
[1720011911195,0.1,59914.0,59912.0,0.0002]
[1720011911585,0.1,59914.0,59905.0,0.33402257]
[1720011911586,0.1602988,59913.0,59905.0,0.03402257]
[1720011911785,0.1,59912.0,59911.0,0.3596]
[1720011911987,0.1162,59914.0,59913.0,0.3596]
[1720011912191,0.1162,59914.0,59913.0,0.3598]
[1720011913116,0.1162,59914.0,59913.0,1.152]
[1720011913117,0.1,59914.0,59913.0,1.152]
[1720011913334,0.1,59914.0,59913.0,1.3122988]
[1720011913480,0.1328,59925.0,59924.0,0.3596]
[1720011913687,0.1166,59925.0,59924.0,0.5864]
[1720011913979,0.1166,59925.0,59924.0,0.5084]
[1720011913980,0.15237,59925.0,59924.0,0.5084]
[1720011914180,0.13577,59925.0,59924.0,0.868]
[1720011914500,0.1,59925.0,59924.0,0.868]
[1720011914700,0.114,59925.0,59924.0,0.868]
[1720011915502,0.128,59925.0,59924.0,0.5084]
[1720011915707,0.128,59925.0,59924.0,0.868]
[1720011915941,0.028,59925.0,59924.0,0.8682]
[1720011916345,0.028,59925.0,59924.0,1.1682]
[1720011917131,0.014,59925.0,59924.0,1.1682]
[1720011917562,0.015,59925.0,59924.0,1.1692]
[1720011917854,0.2411,59936.0,59935.0,0.3598]
[1720011918050,0.0001,59941.0,59931.0,0.2271]
[1720011918051,0.0001,59941.0,59939.0,0.6598]
[1720011918251,0.0001,59941.0,59940.0,1.1742]
[1720011919078,0.0001,59941.0,59940.0,1.3344988]
[1720011919256,0.0001,59941.0,59940.0,1.50094868]
[1720011919456,0.2411,59960.0,59959.0,0.3596]
[1720011919732,0.2573,59960.0,59958.0,0.3596]
[1720011919932,0.0162,59960.0,59958.0,0.3596]
[1720011920106,0.0162,59960.0,59959.0,0.3596]
[1720011920324,0.03201079,59960.0,59959.0,0.3596]
[1720011921038,0.03201079,59960.0,59957.0,0.0002]
[1720011921189,0.17620959,59959.0,59949.0,0.0002]
[1720011921512,0.17620959,59959.0,59947.0,0.4961]
[1720011921513,0.08015582,59957.0,59952.0,0.0002]
[1720011921714,0.3014,59953.0,59952.0,0.0002]
[1720011921865,0.31731079,59953.0,59952.0,0.3598]
[1720011922074,0.31731079,59953.0,59952.0,0.0002]
[1720011922618,0.41721079,59953.0,59952.0,0.0002]
[1720011922821,0.01591079,59953.0,59952.0,0.69568]
[1720011923021,0.008,59960.0,59959.0,0.6596]
[1720011923022,0.007,59960.0,59959.0,0.6596]
[1720011923228,0.01647794,59960.0,59959.0,0.6596]
[1720011923475,0.3014,59969.0,59959.0,0.6596]
[1720011923476,0.01647794,59968.0,59962.0,0.3596]
[1720011923690,0.0714108,59967.0,59966.0,0.3]
[1720011924007,0.01647627,59967.0,59966.0,0.3596]
[1720011924335,0.01647627,59967.0,59966.0,0.8799]
[1720011924960,0.01647627,59967.0,59966.0,1.1799]
[1720011925155,0.0002,59970.0,59969.0,0.3596]
[1720011925554,0.0002,59970.0,59969.0,0.3595]
[1720011925926,0.0002,59970.0,59969.0,0.6594]
[1720011926579,0.0002,59970.0,59969.0,0.6604]
[1720011926971,0.0002,59970.0,59969.0,0.6594]
[1720011927184,0.01608565,59970.0,59969.0,0.6594]
[1720011927320,0.0122,59970.0,59969.0,0.6604]
[1720011928640,0.0122,59970.0,59969.0,0.3594]
[1720011928806,0.0122,59970.0,59961.0,0.0003]
[1720011928807,0.3016,59970.0,59962.0,0.5368]
[1720011929007,0.0001,59968.0,59964.0,0.3594]
[1720011929209,0.08015582,59967.0,59960.0,0.0594]
[1720011929463,0.3014,59963.0,59960.0,0.0594]
[1720011929662,0.3014,59963.0,59942.0,0.2162605]
[1720011929663,0.11626562,59962.0,59955.0,0.0594]
[1720011929966,0.01626562,59961.0,59956.0,0.0594]
[1720011930317,0.01626562,59961.0,59957.0,0.0594]
[1720011930742,0.01616562,59961.0,59960.0,0.01]
[1720011930944,0.05802218,59961.0,59960.0,0.01]
[1720011931330,0.01616562,59961.0,59960.0,0.01]
[1720011931526,0.01616562,59961.0,59960.0,0.0694]
[1720011932170,0.01616562,59961.0,59960.0,0.0594]
[1720011932372,0.1,59962.0,59961.0,0.0594]
[1720011932587,0.008,59961.0,59957.0,0.3313]
[1720011932818,0.04514,59961.0,59960.0,0.001]
[1720011933043,0.04514,59961.0,59960.0,0.002]
[1720011933250,0.04814,59961.0,59960.0,0.001]
[1720011933464,0.04014,59961.0,59960.0,0.0594]
[1720011933664,0.07659905,59963.0,59962.0,0.0594]
[1720011935118,0.07659905,59963.0,59961.0,0.0595]
[1720011935377,0.07659905,59963.0,59961.0,0.0596]
[1720011935545,0.07659905,59963.0,59961.0,0.0002]
[1720011936324,0.08759905,59963.0,59961.0,0.0012]
[1720011936525,0.00875991,59962.0,59961.0,0.0012]
[1720011936774,0.09759905,59963.0,59961.0,0.0022]
[1720011937792,0.09759905,59963.0,59961.0,0.0319]
[1720011938194,0.08759905,59963.0,59961.0,0.0012]
[1720011938401,0.08759905,59963.0,59962.0,0.0594]
[1720011939369,0.09559905,59963.0,59962.0,0.0594]
[1720011939570,0.008,59963.0,59962.0,0.0594]
[1720011940002,0.1,59966.0,59964.0,0.0594]
[1720011940402,0.1,59966.0,59965.0,0.0594]
[1720011940603,0.1,59966.0,59965.0,0.3528]
[1720011940860,0.14825789,59974.0,59970.0,0.0594]
[1720011941004,0.0696297,59973.0,59968.0,0.0594]
[1720011941207,0.0155872,59972.0,59971.0,0.0594]
[1720011941417,0.14825789,59974.0,59972.0,0.0593]
[1720011941613,0.01558432,59973.0,59972.0,0.0593]
[1720011942332,0.02558432,59973.0,59972.0,0.0593]
[1720011942487,0.07925341,59973.0,59972.0,0.0593]
[1720011942698,0.01558432,59973.0,59972.0,0.0593]
[1720011942908,0.17925542,59973.0,59972.0,0.0613]
[1720011943127,0.07933041,59973.0,59972.0,0.0613]
[1720011943287,0.0793302,59973.0,59972.0,0.0613]
[1720011943522,0.07933144,59973.0,59972.0,0.002]
[1720011943778,0.07933144,59973.0,59972.0,0.0601]
[1720011944227,0.02558432,59973.0,59972.0,0.0601]
[1720011944641,0.01,59973.0,59972.0,0.0601]
[1720011944843,0.02549312,59973.0,59972.0,0.0601]
[1720011945026,0.02549312,59973.0,59972.0,0.0611]
[1720011945027,0.019,59973.0,59972.0,0.0611]
[1720011945243,0.03449312,59973.0,59972.0,0.0611]
[1720011945773,0.02549312,59973.0,59972.0,0.06]
[1720011945997,0.02549312,59973.0,59972.0,0.0602]
[1720011945998,0.02449312,59973.0,59972.0,0.0602]
[1720011946198,0.02449312,59973.0,59972.0,0.0612]
[1720011946199,0.02649312,59973.0,59972.0,0.0612]
[1720011946398,0.02649312,59973.0,59972.0,0.0602]
[1720011946641,0.08098243,59973.0,59972.0,0.0602]
[1720011946793,0.08098146,59973.0,59972.0,0.0602]
[1720011946999,0.02749312,59973.0,59972.0,0.0602]
[1720011947236,0.012,59973.0,59972.0,0.0601]
[1720011947435,0.08134694,59973.0,59972.0,0.0601]
[1720011947642,0.01,59973.0,59972.0,0.0591]
[1720011948022,0.07926937,59973.0,59972.0,0.0621]
[1720011948225,0.06926937,59973.0,59972.0,0.003]
[1720011948625,0.02141396,59973.0,59972.0,0.0601]
[1720011948990,0.02141396,59973.0,59972.0,0.0591]
[1720011948991,0.07526937,59973.0,59972.0,0.0591]
[1720011949192,0.07626937,59973.0,59972.0,0.0591]
[1720011949342,0.07626937,59973.0,59972.0,0.0601]
[1720011949541,0.06926937,59973.0,59972.0,0.059]
[1720011949757,0.1,59981.0,59980.0,0.059]
[1720011949964,0.06917868,59981.0,59980.0,0.059]
[1720011950141,0.09894792,59986.0,59982.0,0.059]
[1720011950343,0.08015582,59985.0,59978.0,0.059]
[1720011950548,0.07019532,59984.0,59980.0,0.059]
[1720011950767,0.3014,59981.0,59980.0,0.059]
[1720011950967,0.3014,59981.0,59979.0,0.059]
[1720011950968,0.47160086,59981.0,59979.0,0.059]
[1720011951168,0.47160086,59981.0,59974.0,0.059]
[1720011951169,0.17020086,59980.0,59974.0,0.059]
[1720011951370,0.06945554,59979.0,59976.0,0.059]
[1720011951598,0.06945554,59978.0,59976.0,0.059]
[1720011951801,0.06945554,59977.0,59976.0,0.059]
[1720011953284,0.06945554,59977.0,59976.0,0.06]
[1720011953530,0.07545554,59977.0,59976.0,0.06]
[1720011953903,0.07597673,59977.0,59976.0,0.06]
[1720011954304,0.07597528,59977.0,59976.0,0.06]
[1720011955028,0.07597528,59977.0,59976.0,0.3529]
[1720011955186,0.08197528,59977.0,59976.0,0.3539]
[1720011956417,0.08197528,59977.0,59976.0,0.5964]
[1720011957795,0.08104881,59977.0,59976.0,0.5964]
[1720011958397,0.08104881,59977.0,59976.0,0.5374]
[1720011958621,0.08104881,59977.0,59976.0,0.002]
[1720011959232,0.09714881,59977.0,59976.0,0.002]
[1720011959378,0.76914761,59977.0,59976.0,0.002]
[1720011959585,0.88390812,59977.0,59964.0,0.059]
[1720011959835,0.88390812,59977.0,59962.0,0.00084]
[1720011959836,0.3014,59965.0,59962.0,0.05984]
[1720011960024,0.3014,59965.0,59962.0,0.00084]
[1720011960025,0.16904881,59964.0,59962.0,0.00084]
[1720011960229,0.1,59964.0,59962.0,0.00084]
[1720011960424,0.06960751,59963.0,59962.0,0.00084]
[1720011960861,0.06960751,59963.0,59962.0,0.05984]
[1720011961065,0.06960751,59963.0,59962.0,0.00084]
[1720011962145,0.06960751,59963.0,59962.0,0.05984]
[1720011962368,0.06960751,59963.0,59962.0,0.00084]
[1720011962548,0.06979141,59963.0,59962.0,0.00184]
[1720011962750,0.11689216,59963.0,59962.0,0.00184]
[1720011962989,0.20121979,59963.0,59962.0,0.00084]
[1720011963191,0.21689379,59963.0,59962.0,0.00084]
[1720011963347,0.23589379,59963.0,59962.0,0.00284]
[1720011963542,0.23589379,59963.0,59962.0,0.00184]
[1720011963745,0.22589379,59963.0,59962.0,0.00084]
[1720011964179,0.49759379,59963.0,59962.0,0.00284]
[1720011964580,0.78879379,59963.0,59962.0,0.00284]
[1720011964809,0.87089509,59963.0,59962.0,0.00284]
[1720011965033,1.04729389,59963.0,59962.0,0.00284]
[1720011965319,0.2002,59960.0,59959.0,0.005]
[1720011965488,0.2002,59960.0,59943.0,0.059]
[1720011965489,0.1999,59958.0,59943.0,0.059]
[1720011965687,0.3014,59944.0,59943.0,0.059]
[1720011965886,0.46928248,59944.0,59943.0,0.059]
[1720011966107,0.46918248,59944.0,59943.0,0.059]
[1720011966743,0.46918248,59944.0,59943.0,0.06]
[1720011967037,0.46918248,59944.0,59943.0,0.061]
[1720011967038,0.47918248,59944.0,59943.0,0.061]
[1720011967258,0.17788248,59944.0,59943.0,0.06]
[1720011967461,0.02469996,59944.0,59943.0,0.3517]
[1720011967675,0.11,59944.0,59943.0,0.3517]
[1720011967855,0.12509042,59944.0,59943.0,0.3517]
[1720011968053,0.12509042,59944.0,59943.0,0.7750988]
[1720011968294,0.12509042,59944.0,59943.0,0.7760988]
[1720011968295,0.03609042,59944.0,59943.0,0.7760988]
[1720011968426,0.021,59944.0,59943.0,0.7760988]
[1720011968685,0.021,59944.0,59943.0,0.7770988]
[1720011968845,0.031,59944.0,59943.0,0.7770988]
[1720011969051,0.021,59944.0,59943.0,0.85380868]
[1720011969431,0.01,59944.0,59943.0,0.85280868]
[1720011969630,0.01,59944.0,59943.0,0.7750988]
[1720011969831,0.012,59944.0,59943.0,0.7750988]
[1720011970056,0.002,59944.0,59943.0,0.7751988]
[1720011970230,0.06320075,59963.0,59962.0,0.059]
[1720011970231,0.04710075,59963.0,59962.0,0.059]
[1720011970472,0.1,59966.0,59965.0,0.059]
[1720011970689,0.0701483,59966.0,59965.0,0.059]
[1720011970833,0.12711476,59976.0,59972.0,0.059]
[1720011970834,0.11479399,59975.0,59972.0,0.059]
[1720011971038,0.0701319,59974.0,59970.0,0.059]
[1720011971241,0.0701319,59973.0,59970.0,0.059]
[1720011971447,0.0701319,59973.0,59959.0,0.5498]
[1720011971448,0.0701319,59972.0,59971.0,0.059]
[1720011972077,0.0701319,59972.0,59968.0,0.0589]
[1720011972078,0.01436057,59972.0,59968.0,0.0589]
[1720011972279,0.0002,59981.0,59968.0,0.0589]
[1720011972280,0.01436057,59971.0,59968.0,0.0589]
[1720011972502,0.06723475,59970.0,59968.0,0.0588]
[1720011972709,0.06723475,59969.0,59968.0,0.0588]
[1720011973290,0.06723475,59969.0,59968.0,0.0598]
[1720011973487,0.06723475,59969.0,59968.0,0.0597]
[1720011973689,0.06723475,59969.0,59968.0,0.0009]
[1720011973893,0.06723475,59969.0,59968.0,0.0008]
[1720011974349,0.06723475,59969.0,59968.0,0.0006]
[1720011974551,0.06723475,59969.0,59968.0,0.0005]
[1720011974694,0.08123475,59969.0,59968.0,0.0015]
[1720011974901,0.09065823,59969.0,59968.0,0.0015]
[1720011975103,0.01171524,59969.0,59968.0,0.0015]
[1720011975483,0.06216129,59969.0,59968.0,0.0015]
[1720011975911,0.06216129,59969.0,59968.0,0.0603]
[1720011975912,0.05044605,59969.0,59968.0,0.0603]
[1720011976120,0.06444605,59969.0,59968.0,0.0611]
[1720011976537,0.06444605,59969.0,59968.0,0.3048]
[1720011976767,0.06444605,59969.0,59968.0,0.3047]
[1720011976949,0.0201931,59969.0,59968.0,0.3047]
[1720011977508,0.62092766,59994.0,59976.0,0.0588]
[1720011977713,0.10219261,59982.0,59978.0,0.0588]
[1720011977889,0.10219261,59982.0,59978.0,0.0587]
[1720011978109,0.10219261,59982.0,59979.0,0.0587]
[1720011978314,0.10219261,59982.0,59968.0,0.2459]
[1720011978315,0.08314571,59981.0,59974.0,0.0586]
[1720011978519,0.3014,59979.0,59974.0,0.0586]
[1720011978769,0.3014,59979.0,59976.0,0.001]
[1720011978770,0.08015582,59977.0,59976.0,0.001]
[1720011978977,0.3014,59979.0,59976.0,0.001]
[1720011979184,0.3014,59979.0,59976.0,0.0596]
[1720011979395,0.3014,59979.0,59976.0,0.0009]
[1720011979521,0.3014,59979.0,59976.0,0.0018]
[1720011979522,0.1,59978.0,59976.0,0.0018]
[1720011979723,0.08015582,59977.0,59976.0,0.0007]
[1720011979977,0.13662582,59977.0,59976.0,0.0007]
[1720011980169,0.31986167,59977.0,59976.0,0.001]
[1720011980390,0.18323585,59977.0,59976.0,0.001]
[1720011980531,0.18323585,59977.0,59974.0,0.001]
[1720011980735,0.18015582,59976.0,59974.0,0.0009]
[1720011980936,0.18015582,59976.0,59972.0,0.0586]
[1720011981344,0.1,59976.0,59974.0,0.0586]
[1720011981795,0.1,59978.0,59974.0,0.0586]
[1720011982167,0.1,59978.0,59976.0,0.0586]
[1720011982337,0.08015582,59977.0,59976.0,0.0586]
[1720011982495,0.1,59978.0,59977.0,0.0586]
[1720011982695,0.1823548,59978.0,59977.0,0.0586]
[1720011983223,0.1823548,59978.0,59974.0,0.0596]
[1720011983418,0.1823548,59978.0,59974.0,0.0009]
[1720011983579,0.1823548,59978.0,59976.0,0.001]
[1720011984010,0.1,59978.0,59977.0,0.0586]
[1720011984213,0.101,59978.0,59977.0,0.0585]
[1720011984419,0.1011,59978.0,59977.0,0.001]
[1720011984819,0.1011,59978.0,59976.0,0.0001]
[1720011984820,0.22375713,59978.0,59976.0,0.0001]
[1720011985029,0.22375713,59978.0,59976.0,0.0012]
[1720011985030,0.74885462,59977.0,59976.0,0.0012]
[1720011985237,0.74885462,59977.0,59942.0,0.48093494]
[1720011985238,0.0005,59969.0,59958.0,0.01372476]
[1720011985438,0.3014,59961.0,59958.0,0.01372476]
[1720011985643,0.1,59960.0,59955.0,0.0585]
[1720011986238,0.1,59960.0,59945.0,0.2293]
[1720011986239,0.08015582,59957.0,59945.0,0.2293]
[1720011986446,0.08015582,59957.0,59943.0,0.0002]
[1720011986447,0.08015582,59951.0,59943.0,0.0002]
[1720011986652,0.2384,59950.0,59943.0,0.0587]
[1720011986825,0.5739189,59950.0,59943.0,0.0586]
[1720011987032,0.0102789,59949.0,59944.0,0.0585]
[1720011987202,0.0102789,59949.0,59946.0,0.0585]
[1720011987203,0.0102789,59948.0,59946.0,0.0585]
[1720011987401,0.03467984,59947.0,59946.0,0.0585]
[1720011987620,0.56364,59950.0,59943.0,0.0001]
[1720011987621,0.5398,59950.0,59943.0,0.0001]
[1720011987824,0.09348182,59947.0,59943.0,0.0001]
[1720011988030,0.09338182,59947.0,59943.0,0.0001]
[1720011988229,0.05850157,59946.0,59943.0,0.0001]
[1720011988437,0.04822447,59945.0,59943.0,0.0001]
[1720011988631,0.05850157,59944.0,59943.0,0.0586]
[1720011988795,0.05850157,59944.0,59943.0,0.0596]